[Event "Titled Tuesday Blitz October 25 Early 2022"]
[White "Peyrer, Konstantin"]
[Black "Predke, Alexandr"]
[WhiteFideId "1640879"]
[BlackFideId "24107581"]
[WhiteElo "2415"]
[BlackElo "2614"]
[Result "1-0"]
[Round "03"]
[TimeControl "180+1"]
[Date "2022.10.25"]
[WhiteClock "0:00:04"]
[BlackClock "0:00:03"]

1. d4 {[%clk 0:02:58]}  Nf6 {[%clk 0:02:57]} 2. c4 {[%clk 0:02:57]}  e6 {[%clk 0:02:56]} 3. Nf3 {[%clk 0:02:57]}  d5 {[%clk 0:02:53]} 4. g3 {[%clk 0:02:57]}  Be7 {[%clk 0:02:53]} 5. Bg2 {[%clk 0:02:57]}  O-O {[%clk 0:02:53]} 6. O-O {[%clk 0:02:56]}  c6 {[%clk 0:02:54]} 7. Qc2 {[%clk 0:02:53]}  b6 {[%clk 0:02:53]} 8. Bf4 {[%clk 0:02:52]}  Bb7 {[%clk 0:02:49]} 9. Nc3 {[%clk 0:02:48]}  dxc4 {[%clk 0:02:43]} 10. Rfd1 {[%clk 0:02:47]}  Nd5 {[%clk 0:02:37]} 11. Bd2 {[%clk 0:02:46]}  Nd7 {[%clk 0:02:28]} 12. a3 {[%clk 0:02:37]}  b5 {[%clk 0:02:26]} 13. e4 {[%clk 0:02:36]}  Nxc3 {[%clk 0:02:25]} 14. bxc3 {[%clk 0:02:36]}  c5 {[%clk 0:02:04]} 15. Be3 {[%clk 0:02:23]}  cxd4 {[%clk 0:02:04]} 16. Nxd4 {[%clk 0:02:23]}  a6 {[%clk 0:02:05]} 17. a4 {[%clk 0:02:23]}  b4 {[%clk 0:01:51]} 18. cxb4 {[%clk 0:02:21]}  Bxb4 {[%clk 0:01:52]} 19. Qxc4 {[%clk 0:02:18]}  a5 {[%clk 0:01:16]} 20. Nc6 {[%clk 0:01:05]}  Bxc6 {[%clk 0:00:58]} 21. Qxc6 {[%clk 0:01:04]}  Ne5 {[%clk 0:00:58]} 22. Qb5 {[%clk 0:00:38]}  Qb8 {[%clk 0:00:58]} 23. Qxb8 {[%clk 0:00:36]}  Raxb8 {[%clk 0:00:59]} 24. Bf4 {[%clk 0:00:34]}  f6 {[%clk 0:00:55]} 25. Bh3 {[%clk 0:00:31]}  Kf7 {[%clk 0:00:53]} 26. Rac1 {[%clk 0:00:27]}  Rfc8 {[%clk 0:00:50]} 27. Rxc8 {[%clk 0:00:22]}  Rxc8 {[%clk 0:00:50]} 28. Bxe5 {[%clk 0:00:23]}  fxe5 {[%clk 0:00:50]} 29. Rd7+ {[%clk 0:00:24]}  Kf6 {[%clk 0:00:50]} 30. Ra7 {[%clk 0:00:20]}  Rc6 {[%clk 0:00:49]} 31. f4 {[%clk 0:00:18]}  h6 {[%clk 0:00:30]} 32. fxe5+ {[%clk 0:00:16]}  Kxe5 {[%clk 0:00:31]} 33. Rxg7 {[%clk 0:00:15]}  Rc1+ {[%clk 0:00:29]} 34. Kg2 {[%clk 0:00:15]}  Rc2+ {[%clk 0:00:25]} 35. Kh1 {[%clk 0:00:14]}  Rc1+ {[%clk 0:00:13]} 36. Kg2 {[%clk 0:00:12]}  Rc2+ {[%clk 0:00:14]} 37. Kh1 {[%clk 0:00:13]}  Bc5 {[%clk 0:00:13]} 38. Rg6 {[%clk 0:00:11]}  Rc1+ {[%clk 0:00:09]} 39. Kg2 {[%clk 0:00:10]}  Rc2+ {[%clk 0:00:10]} 40. Kh1 {[%clk 0:00:08]}  Kxe4 {[%clk 0:00:07]} 41. Rxe6+ {[%clk 0:00:07]}  Kd5 {[%clk 0:00:05]} 42. Rxh6 {[%clk 0:00:06]}  Be3 {[%clk 0:00:03]} 43. Rh5+ {[%clk 0:00:05]}  Ke4 {[%clk 0:00:03]} 44. Bf5+ {[%clk 0:00:04]} 1-0


[Site "https://www.chess.com"]

[Event "Titled Tuesday Blitz October 25 Early 2022"]
[White "Postny, Evgeny"]
[Black "Sanal, Vahap"]
[WhiteFideId "2804344"]
[BlackFideId "6300545"]
[WhiteElo "2473"]
[BlackElo "2574"]
[Result "0-1"]
[Round "03"]
[TimeControl "180+1"]
[Date "2022.10.25"]
[WhiteClock "0:00:02"]
[BlackClock "0:00:04"]

1. e4 {[%clk 0:03:00]}  d6 {[%clk 0:03:00]} 2. d4 {[%clk 0:03:00]}  Nf6 {[%clk 0:03:01]} 3. Nc3 {[%clk 0:03:00]}  e5 {[%clk 0:03:02]} 4. dxe5 {[%clk 0:02:59]}  dxe5 {[%clk 0:03:03]} 5. Qxd8+ {[%clk 0:02:59]}  Kxd8 {[%clk 0:03:04]} 6. Bc4 {[%clk 0:02:59]}  Ke8 {[%clk 0:03:04]} 7. f4 {[%clk 0:02:54]}  Bb4 {[%clk 0:03:03]} 8. Bd2 {[%clk 0:02:39]}  exf4 {[%clk 0:02:59]} 9. O-O-O {[%clk 0:02:38]}  c6 {[%clk 0:02:39]} 10. Nf3 {[%clk 0:02:30]}  Bg4 {[%clk 0:02:33]} 11. Bxf4 {[%clk 0:02:25]}  Nbd7 {[%clk 0:02:22]} 12. e5 {[%clk 0:02:13]}  Bxc3 {[%clk 0:02:21]} 13. exf6 {[%clk 0:02:02]}  Bxf6 {[%clk 0:02:21]} 14. Rhe1+ {[%clk 0:02:00]}  Kf8 {[%clk 0:02:21]} 15. h3 {[%clk 0:01:52]}  Nb6 {[%clk 0:01:42]} 16. hxg4 {[%clk 0:01:00]}  Nxc4 {[%clk 0:01:42]} 17. Rd7 {[%clk 0:01:00]}  Bxb2+ {[%clk 0:01:37]} 18. Kb1 {[%clk 0:00:59]}  Bf6 {[%clk 0:00:39]} 19. g5 {[%clk 0:00:53]}  Rd8 {[%clk 0:00:31]} 20. Rxb7 {[%clk 0:00:53]}  Bc3 {[%clk 0:00:30]} 21. Rf1 {[%clk 0:00:42]}  h6 {[%clk 0:00:24]} 22. g6 {[%clk 0:00:22]}  f6 {[%clk 0:00:12]} 23. Nh4 {[%clk 0:00:15]}  f5 {[%clk 0:00:04]} 24. Nxf5 {[%clk 0:00:13]}  Bf6 {[%clk 0:00:04]} 25. Re1 {[%clk 0:00:12]}  Bc3 {[%clk 0:00:02]} 26. Rf1 {[%clk 0:00:09]}  Bf6 {[%clk 0:00:03]} 27. Rb4 {[%clk 0:00:08]}  Na3+ {[%clk 0:00:02]} 28. Kc1 {[%clk 0:00:08]}  h5 {[%clk 0:00:03]} 29. Rb7 {[%clk 0:00:07]}  Nc4 {[%clk 0:00:03]} 30. Rxa7 {[%clk 0:00:06]}  h4 {[%clk 0:00:03]} 31. Rf7+ {[%clk 0:00:05]}  Kg8 {[%clk 0:00:03]} 32. Ne7+ {[%clk 0:00:04]}  Bxe7 {[%clk 0:00:04]} 33. Rxe7 {[%clk 0:00:05]}  Rh5 {[%clk 0:00:04]} 34. Bc7 {[%clk 0:00:02]}  Ra8 {[%clk 0:00:03]} 35. Rff7 {[%clk 0:00:02]}  Kh8 {[%clk 0:00:03]} 36. Rxg7 {[%clk 0:00:03]}  Rxa2 {[%clk 0:00:03]} 37. Rh7+ {[%clk 0:00:02]}  Rxh7 {[%clk 0:00:04]} 38. Rxh7+ {[%clk 0:00:01]}  Kg8 {[%clk 0:00:04]} 39. Kb1 {[%clk 0:00:01]}  Ra7 {[%clk 0:00:05]} 40. Kc1 {[%clk 0:00:02]}  Ra1# {[%clk 0:00:04]} 0-1


[Site "https://www.chess.com"]

[Event "Titled Tuesday Blitz October 25 Early 2022"]
[White "Seo, Jung Min"]
[Black "Firouzja, Alireza"]
[WhiteFideId "1734687"]
[BlackFideId "12573981"]
[WhiteElo "2455"]
[BlackElo "2903"]
[Result "0-1"]
[Round "03"]
[TimeControl "180+1"]
[Date "2022.10.25"]
[WhiteClock "0:00:02"]
[BlackClock "0:00:05"]

1. e4 {[%clk 0:03:00]}  g6 {[%clk 0:03:00]} 2. d4 {[%clk 0:03:00]}  Bg7 {[%clk 0:03:01]} 3. Nc3 {[%clk 0:03:00]}  d6 {[%clk 0:03:01]} 4. Nf3 {[%clk 0:03:00]}  Nf6 {[%clk 0:03:00]} 5. Be2 {[%clk 0:03:00]}  O-O {[%clk 0:03:00]} 6. O-O {[%clk 0:03:00]}  a6 {[%clk 0:03:01]} 7. a4 {[%clk 0:02:59]}  Nc6 {[%clk 0:03:01]} 8. Be3 {[%clk 0:02:57]}  e6 {[%clk 0:02:55]} 9. Re1 {[%clk 0:02:56]}  b6 {[%clk 0:02:56]} 10. Qd2 {[%clk 0:02:56]}  Bb7 {[%clk 0:02:56]} 11. Rad1 {[%clk 0:02:54]}  Nb4 {[%clk 0:02:53]} 12. e5 {[%clk 0:02:52]}  dxe5 {[%clk 0:02:48]} 13. Nxe5 {[%clk 0:02:51]}  Nbd5 {[%clk 0:02:17]} 14. Nxd5 {[%clk 0:02:49]}  Bxd5 {[%clk 0:02:13]} 15. Bh6 {[%clk 0:02:45]}  Qd6 {[%clk 0:02:08]} 16. Bxg7 {[%clk 0:02:44]}  Kxg7 {[%clk 0:02:09]} 17. Bf1 {[%clk 0:02:36]}  Bb7 {[%clk 0:02:04]} 18. a5 {[%clk 0:02:29]}  Rad8 {[%clk 0:01:53]} 19. axb6 {[%clk 0:02:28]}  cxb6 {[%clk 0:01:53]} 20. c3 {[%clk 0:02:26]}  b5 {[%clk 0:01:52]} 21. h3 {[%clk 0:02:21]}  Nd5 {[%clk 0:01:38]} 22. Nd3 {[%clk 0:02:20]}  Ne7 {[%clk 0:01:36]} 23. Nc5 {[%clk 0:02:18]}  Bd5 {[%clk 0:01:35]} 24. b4 {[%clk 0:02:16]}  h6 {[%clk 0:01:32]} 25. Ra1 {[%clk 0:02:16]}  Ra8 {[%clk 0:01:32]} 26. Ra3 {[%clk 0:02:11]}  Rfb8 {[%clk 0:01:18]} 27. Rea1 {[%clk 0:02:08]}  Rb6 {[%clk 0:01:18]} 28. Qe1 {[%clk 0:01:58]}  f6 {[%clk 0:01:10]} 29. Ra5 {[%clk 0:01:50]}  g5 {[%clk 0:00:59]} 30. Qc1 {[%clk 0:01:43]}  Ng6 {[%clk 0:00:51]} 31. R1a3 {[%clk 0:01:25]}  Nh4 {[%clk 0:00:45]} 32. Qa1 {[%clk 0:01:19]}  Qf4 {[%clk 0:00:42]} 33. Qd1 {[%clk 0:00:52]}  h5 {[%clk 0:00:40]} 34. Rxa6 {[%clk 0:00:48]}  Rbxa6 {[%clk 0:00:38]} 35. Rxa6 {[%clk 0:00:47]}  Rxa6 {[%clk 0:00:34]} 36. Nxa6 {[%clk 0:00:47]}  g4 {[%clk 0:00:35]} 37. hxg4 {[%clk 0:00:46]}  Nf3+ {[%clk 0:00:25]} 38. gxf3 {[%clk 0:00:43]}  Bxf3 {[%clk 0:00:25]} 39. Qe1 {[%clk 0:00:20]}  Qxg4+ {[%clk 0:00:25]} 40. Kh2 {[%clk 0:00:20]}  Qf4+ {[%clk 0:00:25]} 41. Kg1 {[%clk 0:00:20]}  Qh4 {[%clk 0:00:16]} 42. Bg2 {[%clk 0:00:19]}  Qg4 {[%clk 0:00:14]} 43. Qf1 {[%clk 0:00:20]}  Be2 {[%clk 0:00:15]} 44. Qe1 {[%clk 0:00:19]}  Bf3 {[%clk 0:00:15]} 45. Qf1 {[%clk 0:00:19]}  h4 {[%clk 0:00:14]} 46. Kh2 {[%clk 0:00:19]}  Qf4+ {[%clk 0:00:13]} 47. Kh1 {[%clk 0:00:19]}  Bg4 {[%clk 0:00:11]} 48. f3 {[%clk 0:00:19]}  Bh5 {[%clk 0:00:08]} 49. Nc5 {[%clk 0:00:15]}  Kf7 {[%clk 0:00:08]} 50. Qe1 {[%clk 0:00:12]}  e5 {[%clk 0:00:04]} 51. dxe5 {[%clk 0:00:07]}  Bxf3 {[%clk 0:00:04]} 52. e6+ {[%clk 0:00:06]}  Ke7 {[%clk 0:00:04]} 53. Bxf3 {[%clk 0:00:06]}  Qxf3+ {[%clk 0:00:05]} 54. Kh2 {[%clk 0:00:07]}  Qf4+ {[%clk 0:00:05]} 55. Kh3 {[%clk 0:00:07]}  Qf3+ {[%clk 0:00:05]} 56. Kxh4 {[%clk 0:00:07]}  Qf4+ {[%clk 0:00:05]} 57. Kh3 {[%clk 0:00:07]}  Qf5+ {[%clk 0:00:03]} 58. Kg2 {[%clk 0:00:08]}  Qc2+ {[%clk 0:00:03]} 59. Kf1 {[%clk 0:00:07]}  Qf5+ {[%clk 0:00:03]} 60. Qf2 {[%clk 0:00:06]}  Qb1+ {[%clk 0:00:04]} 61. Kg2 {[%clk 0:00:07]}  Qg6+ {[%clk 0:00:04]} 62. Qg3 {[%clk 0:00:07]}  Qc2+ {[%clk 0:00:05]} 63. Kh3 {[%clk 0:00:08]}  Qf5+ {[%clk 0:00:04]} 64. Qg4 {[%clk 0:00:07]}  Qf1+ {[%clk 0:00:04]} 65. Kh2 {[%clk 0:00:07]}  Qf2+ {[%clk 0:00:04]} 66. Qg2 {[%clk 0:00:08]}  Qh4+ {[%clk 0:00:05]} 67. Kg1 {[%clk 0:00:06]}  Qe1+ {[%clk 0:00:05]} 68. Qf1 {[%clk 0:00:06]}  Qxc3 {[%clk 0:00:06]} 69. Qxb5 {[%clk 0:00:06]}  Qg3+ {[%clk 0:00:04]} 70. Kf1 {[%clk 0:00:06]}  Qf3+ {[%clk 0:00:05]} 71. Ke1 {[%clk 0:00:06]}  Qc3+ {[%clk 0:00:05]} 72. Kd1 {[%clk 0:00:06]}  Qa1+ {[%clk 0:00:03]} 73. Kc2 {[%clk 0:00:06]}  Qa2+ {[%clk 0:00:04]} 74. Kc3 {[%clk 0:00:07]}  Qa1+ {[%clk 0:00:04]} 75. Kb3 {[%clk 0:00:06]}  Qb1+ {[%clk 0:00:04]} 76. Kc3 {[%clk 0:00:05]}  Qc1+ {[%clk 0:00:05]} 77. Kd4 {[%clk 0:00:05]}  Qf4+ {[%clk 0:00:03]} 78. Ne4 {[%clk 0:00:02]}  Kxe6 {[%clk 0:00:01]} 79. Qd5+ {[%clk 0:00:02]}  Ke7 {[%clk 0:00:02]} 80. Qc5+ {[%clk 0:00:02]}  Kd7 {[%clk 0:00:01]} 81. Qd5+ {[%clk 0:00:01]}  Ke7 {[%clk 0:00:02]} 82. Qc5+ {[%clk 0:00:01]}  Kd7 {[%clk 0:00:02]} 83. Qd5+ {[%clk 0:00:01]}  Ke8 {[%clk 0:00:02]} 84. Kd3 {[%clk 0:00:01]}  f5 {[%clk 0:00:02]} 85. Kc4 {[%clk 0:00:02]}  fxe4 {[%clk 0:00:02]} 86. Qe6+ {[%clk 0:00:02]}  Kf8 {[%clk 0:00:02]} 87. b5 {[%clk 0:00:03]}  e3+ {[%clk 0:00:03]} 88. Kc5 {[%clk 0:00:03]}  Qf2 {[%clk 0:00:03]} 89. b6 {[%clk 0:00:03]}  e2+ {[%clk 0:00:03]} 90. Kc6 {[%clk 0:00:03]}  e1=Q {[%clk 0:00:04]} 91. Qxe1 {[%clk 0:00:02]}  Qxe1 {[%clk 0:00:05]} 0-1


[Site "https://www.chess.com"]

[Event "Titled Tuesday Blitz October 25 Early 2022"]
[White "Sokolovsky, Yahli"]
[Black "Salgado Lopez, Ivan"]
[WhiteFideId "2820242"]
[BlackFideId "2257327"]
[WhiteElo "2316"]
[BlackElo "2594"]
[Result "1-0"]
[Round "03"]
[TimeControl "180+1"]
[Date "2022.10.25"]
[WhiteClock "0:00:03"]
[BlackClock "0:00:08"]

1. b3 {[%clk 0:03:00]}  d5 {[%clk 0:02:59]} 2. Bb2 {[%clk 0:03:01]}  e6 {[%clk 0:02:59]} 3. e3 {[%clk 0:03:00]}  Nf6 {[%clk 0:03:00]} 4. Nf3 {[%clk 0:03:00]}  Be7 {[%clk 0:03:00]} 5. d4 {[%clk 0:03:01]}  O-O {[%clk 0:03:00]} 6. Bd3 {[%clk 0:03:01]}  b6 {[%clk 0:03:00]} 7. O-O {[%clk 0:03:00]}  Bb7 {[%clk 0:03:01]} 8. Ne5 {[%clk 0:02:59]}  c5 {[%clk 0:03:00]} 9. Nd2 {[%clk 0:02:59]}  Nc6 {[%clk 0:02:59]} 10. f4 {[%clk 0:02:55]}  a5 {[%clk 0:02:54]} 11. Rf3 {[%clk 0:02:27]}  a4 {[%clk 0:02:48]} 12. Rh3 {[%clk 0:02:24]}  g6 {[%clk 0:02:44]} 13. dxc5 {[%clk 0:02:19]}  bxc5 {[%clk 0:02:36]} 14. Ng4 {[%clk 0:02:06]}  a3 {[%clk 0:02:24]} 15. Be5 {[%clk 0:01:29]}  Nxe5 {[%clk 0:02:07]} 16. fxe5 {[%clk 0:01:27]}  Nd7 {[%clk 0:02:02]} 17. Qf3 {[%clk 0:01:21]}  Qc7 {[%clk 0:01:55]} 18. Qf4 {[%clk 0:01:17]}  f5 {[%clk 0:01:45]} 19. Rxh7 {[%clk 0:00:55]}  g5 {[%clk 0:01:35]} 20. Qg3 {[%clk 0:00:11]}  Kxh7 {[%clk 0:01:34]} 21. Qh3+ {[%clk 0:00:12]}  Kg8 {[%clk 0:01:33]} 22. Qh6 {[%clk 0:00:12]}  Rf7 {[%clk 0:01:31]} 23. Qg6+ {[%clk 0:00:09]}  Kf8 {[%clk 0:01:24]} 24. Rf1 {[%clk 0:00:04]}  Qc6 {[%clk 0:00:27]} 25. Bxf5 {[%clk 0:00:01]}  d4 {[%clk 0:00:11]} 26. Be4 {[%clk 0:00:01]}  Rxf1+ {[%clk 0:00:08]} 27. Kxf1 {[%clk 0:00:02]}  Qc7 {[%clk 0:00:08]} 28. Nh6 {[%clk 0:00:02]}  Nxe5 {[%clk 0:00:08]} 29. Qg8# {[%clk 0:00:03]} 1-0


[Site "https://www.chess.com"]

[Event "Titled Tuesday Blitz October 25 Early 2022"]
[White "Svane, Frederik"]
[Black "Tatarinov, Dmitry"]
[WhiteFideId "12923044"]
[BlackFideId "24160067"]
[WhiteElo "2466"]
[BlackElo "2326"]
[Result "1-0"]
[Round "03"]
[TimeControl "180+1"]
[Date "2022.10.25"]
[WhiteClock "0:02:18"]
[BlackClock "0:02:08"]

1. c4 {[%clk 0:03:00]}  Nf6 {[%clk 0:02:58]} 2. Nc3 {[%clk 0:03:00]}  e6 {[%clk 0:02:58]} 3. e4 {[%clk 0:03:00]}  c5 {[%clk 0:02:58]} 4. Nf3 {[%clk 0:03:00]}  d6 {[%clk 0:02:58]} 5. d4 {[%clk 0:02:59]}  cxd4 {[%clk 0:02:59]} 6. Nxd4 {[%clk 0:03:00]}  a6 {[%clk 0:02:59]} 7. Be2 {[%clk 0:03:00]}  Be7 {[%clk 0:03:00]} 8. Be3 {[%clk 0:03:00]}  O-O {[%clk 0:03:00]} 9. f3 {[%clk 0:02:58]}  Nc6 {[%clk 0:03:00]} 10. Rc1 {[%clk 0:02:54]}  Nxd4 {[%clk 0:03:01]} 11. Qxd4 {[%clk 0:02:52]}  Bd7 {[%clk 0:03:00]} 12. O-O {[%clk 0:02:51]}  Qa5 {[%clk 0:03:00]} 13. Qd2 {[%clk 0:02:48]}  Rfc8 {[%clk 0:02:52]} 14. Rfd1 {[%clk 0:02:44]}  Qd8 {[%clk 0:02:44]} 15. a3 {[%clk 0:02:38]}  Be8 {[%clk 0:02:43]} 16. Qe1 {[%clk 0:02:33]}  Rab8 {[%clk 0:02:37]} 17. e5 {[%clk 0:02:28]}  Nh5 {[%clk 0:02:14]} 18. exd6 {[%clk 0:02:24]}  Bxd6 {[%clk 0:02:14]} 19. Ne4 {[%clk 0:02:23]}  Bf4 {[%clk 0:02:08]} 20. Bxf4 {[%clk 0:02:18]}  Qb6+ {[%clk 0:02:08]} 21. c5 {[%clk 0:02:18]} 1-0


[Site "https://www.chess.com"]

[Event "Titled Tuesday Blitz October 25 Early 2022"]
[White "Zhigalko, Sergei"]
[Black "Blanco Ronquillo, Humberto L."]
[WhiteFideId "13502956"]
[BlackFideId "3504239"]
[WhiteElo "2662"]
[BlackElo "2425"]
[Result "1/2-1/2"]
[Round "03"]
[TimeControl "180+1"]
[Date "2022.10.25"]
[WhiteClock "0:00:06"]
[BlackClock "0:00:12"]

1. e4 {[%clk 0:03:00]}  e5 {[%clk 0:02:55]} 2. Nf3 {[%clk 0:03:00]}  Nc6 {[%clk 0:02:56]} 3. Bc4 {[%clk 0:03:00]}  Nf6 {[%clk 0:02:56]} 4. d3 {[%clk 0:03:00]}  Be7 {[%clk 0:02:56]} 5. O-O {[%clk 0:03:00]}  O-O {[%clk 0:02:56]} 6. Nbd2 {[%clk 0:03:00]}  d6 {[%clk 0:02:55]} 7. c3 {[%clk 0:03:00]}  Kh8 {[%clk 0:02:50]} 8. Re1 {[%clk 0:02:57]}  Ng8 {[%clk 0:02:50]} 9. d4 {[%clk 0:02:53]}  Bg4 {[%clk 0:02:07]} 10. dxe5 {[%clk 0:02:29]}  Nxe5 {[%clk 0:02:04]} 11. Be2 {[%clk 0:02:29]}  Nxf3+ {[%clk 0:01:56]} 12. Bxf3 {[%clk 0:02:25]}  Bxf3 {[%clk 0:01:51]} 13. Nxf3 {[%clk 0:02:25]}  Bf6 {[%clk 0:01:51]} 14. Bf4 {[%clk 0:02:23]}  Ne7 {[%clk 0:01:50]} 15. e5 {[%clk 0:02:20]}  dxe5 {[%clk 0:01:51]} 16. Nxe5 {[%clk 0:02:00]}  Ng6 {[%clk 0:01:30]} 17. Qxd8 {[%clk 0:01:39]}  Raxd8 {[%clk 0:01:29]} 18. Nxg6+ {[%clk 0:01:30]}  fxg6 {[%clk 0:01:30]} 19. Be3 {[%clk 0:01:17]}  Kg8 {[%clk 0:01:19]} 20. Rad1 {[%clk 0:01:17]}  Kf7 {[%clk 0:01:18]} 21. Kf1 {[%clk 0:01:15]}  a6 {[%clk 0:01:17]} 22. Ke2 {[%clk 0:01:12]}  Ke6 {[%clk 0:01:06]} 23. Rxd8 {[%clk 0:00:58]}  Rxd8 {[%clk 0:01:07]} 24. Kf3 {[%clk 0:00:59]}  Kf7 {[%clk 0:00:59]} 25. Bf4 {[%clk 0:00:52]}  Rd7 {[%clk 0:00:59]} 26. g4 {[%clk 0:00:46]}  g5 {[%clk 0:00:58]} 27. Be3 {[%clk 0:00:46]}  h6 {[%clk 0:00:54]} 28. a4 {[%clk 0:00:45]}  Rd5 {[%clk 0:00:50]} 29. Ra1 {[%clk 0:00:21]}  Be5 {[%clk 0:00:46]} 30. h3 {[%clk 0:00:20]}  Ke6 {[%clk 0:00:38]} 31. Ke4 {[%clk 0:00:20]}  Rd7 {[%clk 0:00:37]} 32. Rh1 {[%clk 0:00:14]}  Rf7 {[%clk 0:00:27]} 33. h4 {[%clk 0:00:13]}  Bf4 {[%clk 0:00:20]} 34. Bd4 {[%clk 0:00:11]}  gxh4 {[%clk 0:00:19]} 35. Rxh4 {[%clk 0:00:04]}  Bg5 {[%clk 0:00:20]} 36. Rh1 {[%clk 0:00:02]}  Rf4+ {[%clk 0:00:20]} 37. Kd3 {[%clk 0:00:02]}  Rxg4 {[%clk 0:00:21]} 38. Bxg7 {[%clk 0:00:03]}  Rf4 {[%clk 0:00:15]} 39. Bxh6 {[%clk 0:00:02]}  Bxh6 {[%clk 0:00:14]} 40. Rxh6+ {[%clk 0:00:03]}  Kd5 {[%clk 0:00:12]} 41. b4 {[%clk 0:00:01]}  Rxf2 {[%clk 0:00:12]} 42. c4+ {[%clk 0:00:01]}  Ke5 {[%clk 0:00:11]} 43. Rh5+ {[%clk 0:00:01]}  Kd6 {[%clk 0:00:11]} 44. Rh6+ {[%clk 0:00:02]}  Kd7 {[%clk 0:00:11]} 45. Rh7+ {[%clk 0:00:02]}  Kd6 {[%clk 0:00:12]} 46. a5 {[%clk 0:00:02]}  Rf3+ {[%clk 0:00:11]} 47. Kd4 {[%clk 0:00:03]}  Rf4+ {[%clk 0:00:12]} 48. Kc3 {[%clk 0:00:03]}  Rf3+ {[%clk 0:00:12]} 49. Kd4 {[%clk 0:00:04]}  Rf4+ {[%clk 0:00:12]} 50. Kd3 {[%clk 0:00:04]}  Rf3+ {[%clk 0:00:12]} 51. Kc2 {[%clk 0:00:04]}  Kc6 {[%clk 0:00:12]} 52. Rg7 {[%clk 0:00:04]}  Kd6 {[%clk 0:00:12]} 53. Kb2 {[%clk 0:00:03]}  Kc6 {[%clk 0:00:12]} 54. Rg5 {[%clk 0:00:03]}  Kd6 {[%clk 0:00:12]} 55. Kc2 {[%clk 0:00:04]}  Kc6 {[%clk 0:00:12]} 56. Rc5+ {[%clk 0:00:04]}  Kd6 {[%clk 0:00:12]} 57. Rd5+ {[%clk 0:00:05]}  Kc6 {[%clk 0:00:11]} 58. Rg5 {[%clk 0:00:05]}  Kd6 {[%clk 0:00:11]} 59. Rh5 {[%clk 0:00:04]}  Rg3 {[%clk 0:00:10]} 60. Rh6+ {[%clk 0:00:04]}  Kd7 {[%clk 0:00:10]} 61. Rh7+ {[%clk 0:00:04]}  Kc6 {[%clk 0:00:10]} 62. Rh5 {[%clk 0:00:04]}  Rf3 {[%clk 0:00:09]} 63. Rd5 {[%clk 0:00:04]}  Rg3 {[%clk 0:00:09]} 64. Rd3 {[%clk 0:00:04]}  Rg2+ {[%clk 0:00:05]} 65. Kc3 {[%clk 0:00:05]}  Rg4 {[%clk 0:00:06]} 66. Rh3 {[%clk 0:00:05]}  Kd7 {[%clk 0:00:05]} 67. Rh7+ {[%clk 0:00:05]}  Kc6 {[%clk 0:00:06]} 68. Rh6+ {[%clk 0:00:05]}  Kd7 {[%clk 0:00:06]} 69. Rh3 {[%clk 0:00:06]}  Kc6 {[%clk 0:00:06]} 70. Rf3 {[%clk 0:00:06]}  b6 {[%clk 0:00:06]} 71. Rf6+ {[%clk 0:00:06]}  Kb7 {[%clk 0:00:07]} 72. axb6 {[%clk 0:00:06]}  cxb6 {[%clk 0:00:08]} 73. Rf7+ {[%clk 0:00:07]}  Kc6 {[%clk 0:00:08]} 74. Rf6+ {[%clk 0:00:08]}  Kc7 {[%clk 0:00:08]} 75. Rf7+ {[%clk 0:00:08]}  Kc6 {[%clk 0:00:08]} 76. Rf3 {[%clk 0:00:08]}  Rh4 {[%clk 0:00:08]} 77. Kb3 {[%clk 0:00:08]}  Kc7 {[%clk 0:00:08]} 78. Rg3 {[%clk 0:00:07]}  Kb7 {[%clk 0:00:09]} 79. Rd3 {[%clk 0:00:07]}  Kc6 {[%clk 0:00:09]} 80. Rf3 {[%clk 0:00:07]}  Kc7 {[%clk 0:00:10]} 81. Rf7+ {[%clk 0:00:06]}  Kc6 {[%clk 0:00:10]} 82. Rf6+ {[%clk 0:00:07]}  Kb7 {[%clk 0:00:11]} 83. c5 {[%clk 0:00:05]}  bxc5 {[%clk 0:00:10]} 84. bxc5 {[%clk 0:00:06]}  a5 {[%clk 0:00:09]} 85. Kc3 {[%clk 0:00:07]}  a4 {[%clk 0:00:09]} 86. Rb6+ {[%clk 0:00:07]}  Kc7 {[%clk 0:00:10]} 87. Ra6 {[%clk 0:00:06]}  Kb7 {[%clk 0:00:10]} 88. Rb6+ {[%clk 0:00:06]}  Kc7 {[%clk 0:00:10]} 89. Rb4 {[%clk 0:00:07]}  Rh3+ {[%clk 0:00:09]} 90. Kc4 {[%clk 0:00:07]}  a3 {[%clk 0:00:10]} 91. Rb1 {[%clk 0:00:05]}  a2 {[%clk 0:00:10]} 92. Ra1 {[%clk 0:00:05]}  Rh2 {[%clk 0:00:11]} 93. Kb3 {[%clk 0:00:05]}  Kc6 {[%clk 0:00:11]} 94. Rxa2 {[%clk 0:00:05]}  Rxa2 {[%clk 0:00:11]} 95. Kxa2 {[%clk 0:00:06]}  Kxc5 {[%clk 0:00:12]} 1/2-1/2


[Site "https://www.chess.com"]